fUST/lending_fUST_20240427
["ID","MTS","AMOUNT","RATE_DAILY","PERIOD"]
[323709207,1714176641447,-151.0,0.00019178,2]
[323709208,1714176641456,-151.0,0.00019178,2]
[323709209,1714176641465,-287.50187,0.00019178,2]
[323709210,1714176641474,-151.0,0.00019178,2]
[323709211,1714176641484,-2090.326129,0.00019178,2]
[323709212,1714176641494,-2090.326129,0.00019178,2]
[323709213,1714176641504,-151.0,0.00019178,2]
[323709214,1714176641514,-151.0,0.00019178,2]
[323709215,1714176641523,-151.0,0.00019178,2]
[323709216,1714176641631,-273.238321,0.00019178,2]
[323709217,1714176641640,-151.0,0.00019178,2]
[323709218,1714176641650,-273.238321,0.00019178,2]
[323709219,1714176641659,-151.0,0.00019178,2]
[323709220,1714176641669,-290.455397,0.00019178,2]
[323709221,1714176641678,-290.455397,0.00019178,2]
[323709222,1714176641687,-151.0,0.00019178,2]
[323709223,1714176641696,-159.824362,0.00019178,2]
[323709224,1714176641705,-159.8243628,0.00019178,2]
[323709225,1714176641713,-165.28636,0.00019178,2]
[323709226,1714176641722,-1442.71325,0.00019178,2]
[323709227,1714176641733,-1442.71325,0.00019178,2]
[323709228,1714176641742,-154.86062544,0.00019406,2]
[323709229,1714176641751,-426.33565157,0.000196,2]
[323709230,1714176641761,-151.0,0.000196,2]
[323709231,1714176641771,-1142.51131876,0.00019696,2]
[323709232,1714176641779,-151.0,0.00019696,2]
[323709233,1714176641789,-273.238321,0.00019696,2]
[323709234,1714176641798,-151.0,0.00019696,2]
[323709235,1714176641807,-273.238321,0.00019696,2]
[323709236,1714176641816,-420.0,0.0001975,2]
[323709237,1714176641824,-356.40387446,0.00019895,2]
[323709238,1714176641834,-154.84515485,0.00019897,2]
[323709239,1714176641842,-1306.94,0.0001999,3]
[323709240,1714176641852,-154.84515485,0.00019997,2]
[323709241,1714176641861,-308.5376681,0.00019997,2]
[323709242,1714176641870,-500.0,0.00019999,2]
[323709243,1714176641880,-290.83142318,0.00019999,2]
[323709244,1714176641889,-500.0,0.00019999,2]
[323709245,1714176641901,-642.20350438,0.00019999,2]
[323709246,1714176641912,-6109.99106462,0.0002,2]
[323709247,1714176641922,-22795.63638316,0.0002,2]
[323709248,1714176641933,-241.56503296,0.0002,2]
[323709249,1714176641942,-43542.5370658,0.0002,2]
[323709272,1714177552151,-265.06114989,0.00014716,2]
[323709273,1714177631149,-3049.13524062,0.00014714,2]
[323709274,1714177631170,-300.0,0.00014715,2]
[323709275,1714177631191,-300.0,0.00014715,2]
[323709276,1714177631212,-2936.67987122,0.00014716,2]
[323709277,1714177745102,-300.0,0.00014715,2]
[323709278,1714177745124,-5784.70599638,0.00014716,2]
[323709279,1714177746113,-7033.10455203,0.00014716,2]
[323709280,1714177746134,-420.0,0.00016187,2]
[323709281,1714177746154,-201.0925632,0.00017484,2]
[323709282,1714177746175,-175.352028,0.00017561,2]
[323709283,1714177746197,-494.70135756,0.00017805,2]
[323709345,1714177832752,-250.0,0.00017927,2]
[323709346,1714177832762,-165.02307534,0.00018164,2]
[323709347,1714177832771,-199.69097986,0.00018164,2]
[323709348,1714177832781,-1956.26870298,0.00018432,2]
[323709349,1714177832791,-162.07976976,0.00018432,2]
[323709350,1714177832801,-300.0,0.00018432,2]
[323709351,1714177832826,-306.68470932,0.00018433,2]
[323709352,1714177832848,-7276.50641593,0.00018433,2]
[323709353,1714177832868,-24900.0,0.00018434,2]
[323709355,1714177832890,-168.86069592,0.000188,2]
[323709356,1714177832912,-2000.3067201,0.000189,2]
[323709357,1714177832931,-673.87541818,0.00019798,2]
[323709358,1714177832954,-673.87541816,0.00019799,2]
[323709359,1714177832977,-155.91423434,0.00019799,2]
[323709360,1714177832988,-673.87541816,0.00019799,2]
[323709361,1714177832998,-673.87541816,0.000198,2]
[323709362,1714177833009,-673.87541816,0.000198,2]
[323709363,1714177833019,-1080.49,0.00019889,3]
[323709364,1714177833028,-1080.5,0.00019889,3]
[323709365,1714177833039,-540.25,0.00019889,3]
[323709366,1714177833050,-270.12,0.00019889,3]
[323709367,1714177833060,-810.39,0.00019889,3]
[323709368,1714177833075,-492.66105131,0.00019898,2]
[323709369,1714177833086,-500.0,0.00019898,2]
[323709370,1714177833096,-500.0,0.00019898,2]
[323709371,1714177833106,-513.5200945,0.00019898,2]
[323709372,1714177833116,-137154.15301934,0.00019899,2]
[323709432,1714177838870,-1294.42249839,0.00019899,2]
[323709445,1714177839138,-258.89243828,0.00019899,2]
[323709451,1714177839177,-29.45123888,0.00019899,2]
[323709622,1714177841052,-155.91423435,0.00019799,2]
[323709624,1714177841063,-759.75089526,0.00019899,2]
[323709729,1714177846726,-739.48239273,0.00019898,2]
[323709731,1714178839162,-318.31142862,0.0001368,2]
[323709732,1714178949136,-3049.13524062,0.00013673,2]
[323709733,1714178949156,-564.71160499,0.00013674,2]
[323709734,1714178949175,-154.86062544,0.00013675,2]
[323709735,1714178949197,-362.13734366,0.00013676,2]
[323709736,1714178949218,-1172.56717918,0.0001368,2]
[323709737,1714178949237,-154.86062544,0.0001368,2]
[323709738,1714178949256,-154.84515485,0.0001369,2]
[323709739,1714178949277,-300.0,0.00013698,2]
[323709740,1714178949297,-218.185904,0.00013699,2]
[323709741,1714178949320,-1033.3793081,0.00013699,2]
[323709742,1714178949340,-709.2045781,0.00013699,2]
[323709743,1714178949359,-730.29734039,0.000138,2]
[323709744,1714178949380,-928.07428214,0.00014,2]
[323709745,1714178949400,-250.0,0.00014371,2]
[323709746,1714178949421,-154.87609295,0.0001461,2]
[323709747,1714178949441,-173.00359065,0.00014612,2]
[323709748,1714178949464,-300.0,0.00014728,2]
[323709749,1714178949485,-420.0,0.00015067,2]
[323709750,1714178949504,-193.32045141,0.00015506,2]
[323709751,1714178949524,-160.20070905,0.00015507,2]
[323709752,1714178949544,-59181.69574015,0.00015507,2]
[323709753,1714178949564,-25174.41535698,0.00015508,2]
[323709754,1714178952101,-68252.55914132,0.00015508,2]
[323709755,1714178953101,-24900.0,0.00013288,2]
[323709756,1714178953122,-245064.20002453,0.00015508,2]
[323709757,1714178957084,-59244.79804055,0.00015508,2]
[323709758,1714178957116,-343.58447367,0.00015508,2]
[323709759,1714178965106,-8468.69846363,0.00015508,2]
[323709760,1714178968099,-173.20389332,0.00015508,2]
[323709811,1714179032844,-238.37589599,0.0001368,2]
[323709812,1714179032853,-495.40217295,0.00015507,2]
[323709813,1714179032863,-2679.1966204,0.00017799,2]
[323709814,1714179032872,-154.86062544,0.00017805,2]
[323709815,1714179032881,-226.75681212,0.00017805,2]
[323709816,1714179032891,-218.185904,0.00018182,2]
[323709817,1714179032900,-526.27254571,0.0001851,2]
[323709818,1714179032909,-173.70288886,0.0001851,2]
[323709820,1714179032918,-1490.8786078,0.00018897,2]
[323709822,1714179032928,-927.67309732,0.00018898,2]
[323709824,1714179032938,-1333.5378134,0.000189,2]
[323709825,1714179032948,-168.86069588,0.00019078,2]
[323709826,1714179032957,-300.0,0.00019176,2]
[323709827,1714179032965,-300.0,0.00019176,2]
[323709828,1714179032975,-7929.14053569,0.00019177,2]
[323709829,1714179032983,-165.28636,0.00019178,2]
[323709830,1714179032992,-173.00359065,0.00019799,2]
[323709831,1714179033001,-959.74,0.00019888,3]
[323709832,1714179033015,-479.87,0.0001989,3]
[323709833,1714179033024,-239.93,0.0001989,3]
[323709834,1714179033034,-719.82,0.0001989,3]
[323709835,1714179033043,-93099.32178534,0.00019893,2]
[323709836,1714179033083,-503.84587469,0.00019893,2]
[323709837,1714179033093,-22023.4211883,0.00019895,2]
[323709838,1714179033103,-584.79226055,0.00019895,2]
[323709839,1714179033112,-355.04038315,0.00019895,2]
[323709840,1714179033121,-253.83650777,0.00019896,2]
[323709841,1714179033131,-1264.43985313,0.00019896,2]
[323710169,1714179040112,-500.0,0.00019892,2]
[323710170,1714179040121,-327.21261507,0.00019892,2]
[323710551,1714179044352,-172.78738493,0.00019892,2]
[323710552,1714179044361,-500.0,0.00019892,2]
[323710553,1714179044371,-500.0,0.00019892,2]
[323710554,1714179044380,-500.0,0.00019892,2]
[323710555,1714179044392,-500.0,0.00019892,2]
[323710556,1714179044402,-500.0,0.00019892,2]
[323710557,1714179044411,-262.24574211,0.00019892,2]
[323710580,1714179046280,-237.75425789,0.00019892,2]
[323710581,1714179046290,-500.0,0.00019892,2]
[323710582,1714179046299,-500.0,0.00019892,2]
[323710583,1714179046310,-500.0,0.00019892,2]
[323710584,1714179046322,-500.0,0.00019892,2]
[323710585,1714179046331,-22.40786421,0.00019892,2]
[323710587,1714179179674,1919.84580332,0.0001,2]
[323710588,1714180014338,-154.86062544,0.00014562,2]
[323710589,1714180014359,-1679.98291617,0.00014563,2]
[323710590,1714180014378,-884.10866723,0.00014564,2]
[323710591,1714180014397,-206.14128872,0.00014564,2]
[323710592,1714180014418,-2588.69694882,0.00014565,2]
[323710593,1714180014438,-1057.47244,0.00014566,2]
[323710594,1714180014458,-154.86062544,0.00014567,2]
[323710595,1714180014478,-520.18530278,0.00014567,2]
[323710596,1714180014497,-1222.72014884,0.0001457,2]
[323710597,1714180035097,-300.0,0.00014569,2]
[323710598,1714180035117,-300.0,0.00014569,2]
[323710599,1714180035137,-14796.83142068,0.0001457,2]
[323710600,1714180035160,-1090.24995595,0.00014575,2]
[323710601,1714180035180,-170.412229,0.00015131,2]
[323710602,1714180035201,-420.0,0.00015952,2]
[323710603,1714180035222,-2100.22968197,0.00015954,2]
[323710604,1714180035243,-420.0,0.00016026,2]
[323710605,1714180035262,-155.85462912,0.00016608,2]
[323710606,1714180035281,-154.86062544,0.00016609,2]
[323710607,1714180035301,-884.10866723,0.00016609,2]
[323710608,1714180035320,-519.85393498,0.00016609,2]
[323710609,1714180035341,-2197.01330435,0.00016609,2]
[323710610,1714180035361,-313.21509053,0.00016609,2]
[323710611,1714180035380,-1057.47244,0.00016609,2]
[323710612,1714180035399,-1686.129985,0.00016609,2]
[323710613,1714180035419,-156.86926186,0.0001661,2]
[323710614,1714180035438,-32521.69681444,0.0001661,2]
[323710615,1714180039098,-600.0,0.00014423,2]
[323710616,1714180039119,-277688.45052532,0.0001661,2]
[323710619,1714180161131,-1407.0,0.00016442,2]
[323710620,1714180161151,-300.0,0.00016442,2]
[323710621,1714180161170,-300.0,0.00016442,2]
[323710622,1714180161190,-16019.55156952,0.00016443,2]
[323710623,1714180161209,-7070.18825691,0.00016444,2]
[323710624,1714180161229,-259.26637285,0.00016609,2]
[323710625,1714180161247,-553.56675185,0.00016609,2]
[323710626,1714180161266,-508.12946454,0.00016609,2]
[323710627,1714180161287,-17137.41758433,0.00016609,2]
[323710628,1714180167095,-1490.8786078,0.00016441,2]
[323710629,1714180167114,-146895.03153095,0.00016609,2]
[323710630,1714180173175,-19278.76320259,0.00016609,2]
[323710684,1714180233146,-5.62742578,0.00016607,2]
[323711233,1714180244500,-294.37257422,0.00016607,2]
[323711235,1714180244509,-167.0,0.00016607,2]
[323711237,1714180244519,-7033.10455203,0.00016608,2]
[323711239,1714180244528,-622.80313897,0.00016608,2]
[323711241,1714180244538,-35469.61004464,0.00016609,2]
[323711243,1714180244547,-24900.0,0.00016622,2]
[323711245,1714180244556,-550.42642208,0.000176,2]
[323711247,1714180244566,-1217.50298328,0.000179,2]
[323711250,1714180244576,-305.51592634,0.00017998,2]
[323711251,1714180244585,-6499.06384556,0.00018,2]
[323711253,1714180244595,-1029.06842604,0.00018,2]
[323711255,1714180244608,-1000.719805,0.00018,2]
[323711257,1714180244618,-420.0,0.00018268,2]
[323711259,1714180244627,-1217.50298326,0.00018374,2]
[323711261,1714180244638,-1000.0,0.000185,2]
[323711263,1714180244648,-1217.50298326,0.00018848,2]
[323711265,1714180244659,-1126.04339962,0.000189,2]
[323711267,1714180244670,-1054.31,0.0001899,3]
[323711270,1714180244680,-7929.14053569,0.00019,2]
[323711271,1714180244691,-1000.0,0.00019,2]
[323711274,1714180244704,-527.16,0.00019168,3]
[323711276,1714180244716,-263.58,0.00019168,3]
[323711278,1714180244727,-790.74,0.00019168,3]
[323711280,1714180244738,-605.02194921,0.00019178,2]
[323711281,1714180244749,-500.0,0.00019178,2]
[323711283,1714180244759,-277.81258254,0.00019178,2]
[323711285,1714180244770,-500.0,0.00019178,2]
[323711288,1714180244781,-573.62390222,0.00019178,2]
[323711289,1714180244790,-500.0,0.00019178,2]
[323711292,1714180244801,-500.0,0.00019178,2]
[323711293,1714180244812,-500.0,0.00019178,2]
[323711295,1714180244823,-500.0,0.00019178,2]
[323711298,1714180244834,-500.0,0.00019178,2]
[323711299,1714180244844,-500.0,0.00019178,2]
[323711301,1714180244860,-500.0,0.00019178,2]
[323711303,1714180244871,-500.0,0.00019178,2]
[323711305,1714180244881,-500.0,0.00019178,2]
[323711308,1714180244893,-500.0,0.00019178,2]
[323711309,1714180244902,-500.0,0.00019178,2]
[323711311,1714180244912,-500.0,0.00019178,2]
[323711314,1714180244923,-500.0,0.00019178,2]
[323711315,1714180244933,-500.0,0.00019178,2]
[323711317,1714180244944,-500.0,0.00019178,2]
[323711319,1714180244954,-500.0,0.00019178,2]
[323711321,1714180244964,-500.0,0.00019178,2]
[323711323,1714180244974,-500.0,0.00019178,2]
[323711326,1714180244985,-500.0,0.00019178,2]
[323711328,1714180244995,-500.0,0.00019178,2]
[323711330,1714180245006,-500.0,0.00019178,2]
[323711332,1714180245016,-500.0,0.00019178,2]
[323711334,1714180245029,-500.0,0.00019178,2]
[323711336,1714180245039,-500.0,0.00019178,2]
[323711338,1714180245049,-500.0,0.00019178,2]
[323711340,1714180245060,-500.0,0.00019178,2]
[323711342,1714180245070,-500.0,0.00019178,2]
[323711344,1714180245080,-500.0,0.00019178,2]
[323711346,1714180245090,-500.0,0.00019178,2]
[323711348,1714180245100,-500.0,0.00019178,2]
[323711350,1714180245112,-500.0,0.00019178,2]
[323711352,1714180245121,-500.0,0.00019178,2]
[323711354,1714180245130,-500.0,0.00019178,2]
[323711356,1714180245139,-500.0,0.00019178,2]
[323711357,1714180245148,-500.0,0.00019178,2]
[323711359,1714180245157,-500.0,0.00019178,2]
[323711361,1714180245166,-500.0,0.00019178,2]
[323711363,1714180245175,-500.0,0.00019178,2]
[323711365,1714180245184,-500.0,0.00019178,2]
[323711379,1714180245304,-500.0,0.00019178,2]
[323711381,1714180245314,-500.0,0.00019178,2]
[323711383,1714180245323,-500.0,0.00019178,2]
[323711385,1714180245332,-500.0,0.00019178,2]
[323711387,1714180245342,-500.0,0.00019178,2]
[323711389,1714180245353,-500.0,0.00019178,2]
[323711391,1714180245362,-607.35520642,0.00019178,2]
[323711393,1714180245371,-500.0,0.00019178,2]
[323711395,1714180245381,-500.0,0.00019178,2]
[323711397,1714180245390,-500.0,0.00019178,2]
[323711399,1714180245399,-500.0,0.00019178,2]
[323711401,1714180245409,-500.0,0.00019178,2]
[323711403,1714180245418,-500.0,0.00019178,2]
[323711405,1714180245426,-500.0,0.00019178,2]
[323711407,1714180245436,-500.0,0.00019178,2]
[323711409,1714180245445,-500.0,0.00019178,2]
[323711411,1714180245454,-500.0,0.00019178,2]
[323711413,1714180245463,-500.0,0.00019178,2]
[323711415,1714180245472,-500.0,0.00019178,2]
[323711417,1714180245481,-500.0,0.00019178,2]
[323711419,1714180245490,-500.0,0.00019178,2]
[323711421,1714180245499,-500.0,0.00019178,2]
[323711423,1714180245508,-500.0,0.00019178,2]
[323711425,1714180245517,-500.0,0.00019178,2]
[323711427,1714180245525,-500.0,0.00019178,2]
[323711429,1714180245534,-500.0,0.00019178,2]
[323711431,1714180245543,-500.0,0.00019178,2]
[323711433,1714180245551,-500.0,0.00019178,2]
[323711435,1714180245561,-500.0,0.00019178,2]
[323711436,1714180245570,-500.0,0.00019178,2]
[323711438,1714180245580,-500.0,0.00019178,2]
[323711440,1714180245589,-500.0,0.00019178,2]
[323711443,1714180245599,-500.0,0.00019178,2]
[323711444,1714180245610,-500.0,0.00019178,2]
[323711447,1714180245619,-500.0,0.00019178,2]
[323711449,1714180245629,-500.0,0.00019178,2]
[323711451,1714180245638,-500.0,0.00019178,2]
[323711452,1714180245647,-400.0,0.00019178,2]
[323711455,1714180245657,-500.0,0.00019178,2]
[323711456,1714180245666,-165.28636,0.00019178,2]
[323711460,1714180245676,-165.28636,0.00019178,2]
[323711462,1714180245685,-1217.50298326,0.00019322,2]
[323711465,1714180245695,-1000.0,0.000195,2]
[323711466,1714180245705,-1217.50298326,0.00019796,2]
[323711468,1714180245716,-286.27833393,0.00019895,2]
[323711470,1714180245725,-500.0,0.00019895,2]
[323711473,1714180245734,-500.0,0.00019895,2]
[323711475,1714180245743,-500.0,0.00019895,2]
[323711477,1714180245753,-500.0,0.00019895,2]
[323711480,1714180245761,-409.46012548,0.00019895,2]
[323711483,1714180245771,-583.41552622,0.00019895,2]
[323711485,1714180245780,-397.29831539,0.00019895,2]
[323711488,1714180245790,-59181.69574015,0.00019896,2]
[323711490,1714180245799,-468.51779384,0.00019897,2]
[323711492,1714180245807,-204.46859608,0.00019897,2]
[323711494,1714180245819,-408.93284854,0.00019897,2]
[323711496,1714180245828,-4615.21796096,0.00019898,2]
[323711498,1714180245836,-1311.24969014,0.00019898,2]
[323711500,1714180245845,-977.94969331,0.00019898,2]
[323711502,1714180245857,-284.90230402,0.00019898,2]
[323711504,1714180245866,-571.30550256,0.00019898,2]
[323711506,1714180245875,-401.14940536,0.00019898,2]
[323711507,1714180245884,-16087.28363851,0.00019899,2]
[323711509,1714180245894,-44444.0,0.000199,2]
[323711511,1714180245903,-1878.18326724,0.00019995,2]
[323711513,1714180245912,-154.84515485,0.00019996,2]
[323711516,1714180245922,-1684.47302411,0.00019996,2]
[323711517,1714180245931,-1201.30186171,0.00019996,2]
[323711519,1714180245940,-530.35359894,0.00019996,2]
[323711521,1714180245949,-154.90705577,0.00019996,2]
[323711523,1714180245958,-940.32116045,0.00019996,2]
[323711525,1714180245968,-474.97592894,0.00019997,2]
[323711527,1714180245977,-596.92086252,0.00019997,2]
[323711530,1714180245986,-521.62660451,0.00019997,2]
[323711531,1714180245995,-2189.70989565,0.00019997,2]
[323711534,1714180246005,-158.79873753,0.00019997,2]
[323711536,1714180246014,-564.71160499,0.00019997,2]
[323711538,1714180246023,-362.01061268,0.00019997,2]
[323711539,1714180246032,-185.4848423,0.00019997,2]
[323711541,1714180246041,-154.86340167,0.00019997,2]
[323711543,1714180246050,-313.20028394,0.00019997,2]
[323711545,1714180246059,-1249.01989981,0.00019997,2]
[323711547,1714180246069,-1890.36328834,0.00019997,2]
[323711550,1714180246078,-683.25083792,0.00019997,2]
[323711551,1714180246087,-212.46303468,0.00019998,2]
[323711553,1714180246098,-162.04590632,0.00019999,2]
[323711555,1714180246110,-23825.88989175,0.0002,2]
[323711557,1714180246119,-278.11086139,0.0002,2]
[323711559,1714180246130,-329.55462983,0.0002,2]
[323711561,1714180246139,-10102.56229308,0.0002,2]
[323711563,1714180246148,-160.79227797,0.0002,2]
[323711565,1714180246157,-154.84515485,0.0002,2]
[323711568,1714180246167,-52421.84330357,0.0002,2]
[323711570,1714180246176,-241.56503296,0.0002,2]
[323711571,1714180246185,-2291.536822,0.0002,2]
[323711600,1714180246429,-3257.94786422,0.0002,2]
[323711751,1714180314932,-1892.02,0.0002036,3]
[323711762,1714181153120,-233.19883116,0.0001861,2]
[323711763,1714181153141,-175.352028,0.00018614,2]
[323711764,1714181153164,-300.0,0.00018834,2]
[323711765,1714181153189,-2023.21536841,0.00018835,2]
[323711766,1714181158425,-260.5,0.00018609,2]
[323711767,1714181158448,-542.673296,0.00018835,2]
[323711769,1714181347090,-269.50926957,0.00014728,2]
[323711973,1714181438540,-162.37552439,0.00016101,2]
[323711975,1714181438550,-141.15405645,0.00017988,2]
[323711979,1714181438574,-14.31183099,0.00017988,2]
[323711981,1714181438584,-300.0,0.00017989,2]
[323711983,1714181438593,-491.86445464,0.0001799,2]
[323712212,1714181440692,-3085.90952021,0.0001799,2]
[323712575,1714181443799,-5714.08045799,0.0001799,2]
[323712577,1714181443811,-626.58826752,0.0001799,2]
[323713141,1714181776848,-3634.97906491,0.0002,5]
[323713142,1714181781000,-154.86062544,0.00017985,2]
[323713143,1714181781024,-154.86062544,0.00017985,2]
[323713144,1714181781048,-154.86062544,0.00017986,2]
[323713145,1714181781073,-300.0,0.00017989,2]
[323713146,1714181781098,-300.0,0.00017989,2]
[323713147,1714181781122,-3049.6859726,0.00017989,2]
[323713148,1714181781147,-55412.10338516,0.00017989,2]
[323713149,1714181781171,-13768.29556016,0.0001799,2]
[323713150,1714181781193,-154.9063322,0.0001799,2]
[323713151,1714181781220,-387.02992454,0.0001799,2]
[323713152,1714181781245,-14981.55729964,0.0001799,2]
[323713153,1714181781267,-201.0925632,0.00018283,2]
[323713154,1714181781291,-754.9685388,0.000189,2]
[323713155,1714181781313,-155.03103533,0.00019,2]
[323713156,1714181781336,-22270.47342266,0.000195,2]
[323713157,1714181781359,-420.0,0.00019788,2]
[323713158,1714181781382,-511.96,0.00019986,3]
[323713159,1714181781404,-426.63,0.00019986,3]
[323713160,1714181781427,-213.31,0.00019986,3]
[323713161,1714181781452,-639.98,0.00019986,3]
[323713162,1714181781474,-371.67,0.00019986,3]
[323713163,1714181781496,-185.84,0.00019986,3]
[323713164,1714181781519,-557.53,0.00019986,3]
[323713165,1714181781541,-1017.28626443,0.00019994,2]
[323713166,1714181781563,-208.93350233,0.00019994,2]
[323713167,1714181781585,-251.45268972,0.00019994,2]
[323713168,1714181781607,-157.6006878,0.00019994,2]
[323713169,1714181781628,-424.89159133,0.00019995,2]
[323713170,1714181781650,-165.37522559,0.00019995,2]
[323713171,1714181781672,-500.0,0.00019995,2]
[323713172,1714181781694,-421.49601937,0.00019995,2]
[323713173,1714181781723,-247.45333821,0.00019995,2]
[323713174,1714181781746,-500.0,0.00019995,2]
[323713175,1714181781768,-245.40520543,0.00019995,2]
[323713176,1714181781791,-500.0,0.00019995,2]
[323713177,1714181781816,-500.0,0.00019995,2]
[323713178,1714181781840,-500.0,0.00019995,2]
[323713179,1714181781864,-500.0,0.00019995,2]
[323713180,1714181781887,-555.9553593,0.00019995,2]
[323713181,1714181781911,-500.0,0.00019995,2]
[323713182,1714181781933,-500.0,0.00019995,2]
[323713183,1714181781959,-500.0,0.00019995,2]
[323713184,1714181782146,-134277.50420588,0.00019996,2]
[323713251,1714182632554,-154.86062544,0.00018785,2]
[323713253,1714182632564,-154.86062544,0.00018786,2]
[323713255,1714182632574,-300.0,0.0001879,2]
[323713258,1714182632587,-24900.0,0.00018791,2]
[323713259,1714182632596,-503.3123592,0.000189,2]
[323713262,1714182632606,-162.83091327,0.00019895,2]
[323713263,1714182632615,-162.83091326,0.000199,2]
[323713266,1714182632625,-579.23,0.00019989,3]
[323713268,1714182632634,-289.61,0.00019989,3]
[323713270,1714182632643,-868.87,0.00019989,3]
[323713272,1714182632652,-155.45510198,0.00019995,2]
[323713274,1714182632662,-203.5772127,0.00019997,2]
[323713275,1714182632670,-301.12834995,0.00019997,2]
[323713278,1714182632680,-239.5,0.00019997,2]
[323713280,1714182632689,-285.12994024,0.00019997,2]
[323713282,1714182632699,-154.86290392,0.00019997,2]
[323713284,1714182632708,-155.14232645,0.00019997,2]
[323713286,1714182632717,-155.10500961,0.00019997,2]
[323713288,1714182632727,-16057.1214438,0.00019997,2]
[323713290,1714182632736,-155.0987314,0.00019997,2]
[323713292,1714182632746,-155.30621765,0.00019997,2]
[323713294,1714182632756,-154.94768953,0.00019997,2]
[323713296,1714182632765,-155.31677567,0.00019997,2]
[323713297,1714182632774,-155.14781281,0.00019997,2]
[323713300,1714182632784,-154.97070061,0.00019997,2]
[323713302,1714182632795,-154.84515485,0.00019998,2]
[323713303,1714182632804,-211.84670883,0.00019998,2]
[323713306,1714182632813,-206.14128872,0.00019998,2]
[323713307,1714182632822,-549.72031836,0.00019998,2]
[323713310,1714182632835,-186.19135314,0.00019998,2]
[323713311,1714182632844,-155.39117628,0.00019998,2]
[323713314,1714182632853,-180.64115116,0.00019998,2]
[323713316,1714182632863,-320.33714495,0.00019998,2]
[323713317,1714182632873,-472.33021332,0.00019998,2]
[323713320,1714182632883,-500.0,0.00019998,2]
[323713321,1714182632892,-500.0,0.00019998,2]
[323713323,1714182632901,-506.21726214,0.00019998,2]
[323713325,1714182632911,-513.5200945,0.00019998,2]
[323713327,1714182632920,-3056.83459344,0.00019999,2]
[323713329,1714182632929,-228994.22864374,0.00019999,2]
[323713566,1714182638624,-11285.92993645,0.00019999,2]
[323713569,1714182638636,-2139.02944453,0.00019999,2]
[323713575,1714182638680,-2577.9693722,0.00019999,2]
[323713683,1714182643636,-1090.65270281,0.00019999,2]
[323713684,1714182644038,-777.77770153,0.00019999,2]
[323713692,1714182646556,-247.58673594,0.00019998,2]
[323713693,1714182646565,-699.42773562,0.00019999,2]
[323713709,1714183752172,-154.86062544,0.0001472,2]
[323713710,1714183752196,-719.84911317,0.00014721,2]
[323713711,1714183752217,-462.5458359,0.00014727,2]
[323713721,1714183833718,-34.10033146,0.00014727,2]
[323713723,1714183833727,-300.0,0.00018503,2]
[323713725,1714183833738,-10509.2710667,0.00018504,2]
[323713727,1714183833749,-719.84911317,0.00018899,2]
[323713728,1714183833761,-335.5415728,0.000189,2]
[323713730,1714183833772,-154.86062544,0.00018998,2]
[323713732,1714183833781,-152.27,0.0001999,3]
[323713734,1714183833792,-810.39,0.0001999,3]
[323713735,1714183833802,-819.31,0.0001999,3]
[323713737,1714183833812,-273.1,0.0001999,3]
[323713739,1714183833823,-819.35,0.0001999,3]
[323713740,1714183833834,-155.02537614,0.00019998,2]
[323713742,1714183833844,-154.86062544,0.00019998,2]
[323713744,1714183833855,-14984.19703288,0.00019999,2]
[323713746,1714183833865,-202.42723428,0.00019999,2]
[323713749,1714183833876,-65546.18090692,0.0002,2]
[323713751,1714183833890,-317.61930366,0.0002,2]
[323713753,1714183833902,-939.1024794,0.0002,2]
[323713757,1714183833931,-264.83807896,0.0002,2]
[323714003,1714184742168,-272.07034995,0.00018072,2]
[323714006,1714184948120,-167.19318942,0.00016101,2]
[323714040,1714185032569,-300.0,0.00014728,2]
[323714041,1714185032579,-5.81040123,0.00016101,2]